bitfinex/quotes_ETHUSD_20241223
["timestamp","ask_amount","ask_price","bid_price","bid_amount"]
[1734988140830,2e-06,3434.8,3434.2,273.0169]
[1734988141121,2e-06,3434.8,3434.2,270.1051]
[1734988141530,2e-06,3434.8,3434.2,273.15311474]
[1734988141711,2e-06,3434.8,3434.7,2.91146]
[1734988143415,0.14568434,3435.0,3434.9,2.91129]
[1734988144514,0.07533742,3435.0,3434.9,2.91129]
[1734988145310,0.07533742,3435.0,3434.7,2.91146]
[1734988145311,0.07533742,3435.0,3434.7,2.91138]
[1734988145550,0.07533742,3435.0,3434.9,2.91129]
[1734988146148,0.07533742,3435.0,3434.4,2.91171]
[1734988146371,0.07533742,3435.0,3434.2,270.1051]
[1734988146810,0.07533742,3435.0,3434.2,270.90606311]
[1734988147008,0.07533742,3435.0,3434.2,273.95407785]
[1734988147210,0.07533742,3435.0,3434.9,2.91129]
[1734988147668,0.07533742,3435.0,3434.6,2.91146]
[1734988148159,0.07533742,3435.0,3434.4,2.9117]
[1734988148374,0.07533742,3435.0,3434.5,4.70012473]
[1734988148508,0.07533742,3435.0,3434.2,273.81786311]
[1734988148712,0.07533742,3435.0,3434.2,270.90606311]
[1734988149513,0.07533742,3435.0,3434.2,270.1051]
[1734988149709,2.91138,3434.8,3434.2,270.1051]
[1734988149914,0.07533742,3435.0,3434.2,270.1051]
[1734988149915,2.98661742,3435.0,3434.2,270.1051]
[1734988150227,0.07533742,3435.0,3434.2,273.01691]
[1734988150951,2.91159,3434.6,3434.2,270.1051]
[1734988151152,2.91164,3434.5,3434.2,270.1051]
[1734988151959,2.91173,3434.4,3434.2,270.1051]
[1734988152155,2.9118,3434.3,3434.2,270.1051]
[1734988153335,2.9118,3434.3,3434.2,268.64916]
[1734988153514,5.04185189,3435.8,3434.2,268.64916]
[1734988153714,1.21674075,3434.9,3434.4,2.91169]
[1734988154159,1.21674075,3434.9,3434.4,2.98958131]
[1734988154360,1.21674075,3434.9,3434.5,2.91161]
[1734988154777,0.07533742,3435.0,3434.6,2.91151]
[1734988155849,0.07533742,3435.0,3434.4,2.98958131]
[1734988156046,0.07533742,3435.0,3434.6,2.91148]
[1734988156275,0.07533742,3435.0,3434.3,2.91172]
[1734988156498,0.07533742,3435.0,3434.4,2.91167]
[1734988156798,0.07533742,3435.0,3434.3,2.98958131]
[1734988157003,0.07533742,3435.0,3434.5,2.91157]
[1734988157340,0.07533742,3435.0,3434.2,268.64916]
[1734988157838,0.07533742,3435.0,3434.4,2.91164]
[1734988158390,0.07533742,3435.0,3434.2,271.56104]
[1734988158692,0.07533742,3435.0,3434.4,2.91163]
[1734988159340,0.07533742,3435.0,3434.6,2.91152]
[1734988159578,0.07533742,3435.0,3434.8,2.91135]
[1734988159780,0.07533742,3435.0,3434.2,271.56104]
[1734988159969,0.07533742,3435.0,3434.4,2.91168]
[1734988160339,0.07533742,3435.0,3434.2,271.56097]
[1734988160541,0.07533742,3435.0,3434.2,271.63874131]
[1734988160740,0.07533742,3435.0,3434.7,2.91139]
[1734988161039,0.07533742,3435.0,3434.9,2.91129]
[1734988161378,0.07533742,3435.0,3434.7,2.91145]
[1734988161574,0.07533742,3435.0,3434.9,2.91129]
[1734988162662,0.07533742,3435.0,3434.4,2.91171]
[1734988162865,0.07533742,3435.0,3434.2,271.63874131]
[1734988163073,0.07533742,3435.0,3434.2,268.64916]
[1734988163258,0.07533742,3435.0,3434.2,271.56102]
[1734988163876,0.07533742,3435.0,3434.2,268.64916]
[1734988164079,2.91146,3434.7,3434.2,268.64916]
[1734988164379,2.91154,3434.6,3434.2,268.64916]
[1734988164604,2.9118,3434.3,3434.2,268.64916]
[1734988165465,2.9118,3434.3,3434.2,264.28134]
[1734988165670,2.9118,3434.3,3434.2,259.04274086]
[1734988165866,6.1618,3434.3,3434.2,259.04274086]
[1734988166189,5.9118,3434.3,3434.2,259.04274086]
[1734988166353,2.9118,3434.3,3434.2,259.04274086]
[1734988166557,3.0,3435.2,3434.2,259.04274086]
[1734988166878,1.21674075,3434.3,3434.2,259.04274086]
[1734988167445,1.21674075,3434.3,3434.2,264.94420217]
[1734988167873,1.17665343,3434.3,3434.2,264.94420217]
[1734988168457,2.91097,3435.3,3434.2,259.04274086]
[1734988168663,1.18165343,3435.5,3434.2,259.04274086]
[1734988168878,2.91137,3434.9,3434.2,259.04274086]
[1734988169096,2.91113,3435.1,3434.0,2.91204]
[1734988169404,1.18165343,3435.5,3433.5,2.91247]
[1734988169547,2.91148,3434.7,3433.5,2.91247]
[1734988169744,2.91129,3434.9,3433.0,2.91283]
[1734988170104,2.91151,3434.7,3433.5,2.91245]
[1734988170380,2.91151,3434.7,3433.1,0.59608447]
[1734988170381,0.07533742,3435.0,3433.1,0.59608447]
[1734988170581,2.91142,3434.8,3433.2,2.91265]
[1734988170885,2.91183,3434.3,3432.5,2.91329]
[1734988171190,2.91156,3434.6,3433.4,2.91248]
[1734988171385,2.91156,3434.6,3432.8,3.04801474]
[1734988171588,0.07533742,3435.0,3433.3,3.04801474]
[1734988172193,0.07533742,3435.0,3433.4,2.9416786]
[1734988172685,0.07533742,3435.0,3434.1,2.91193]
[1734988173348,0.07533742,3435.0,3434.3,2.91173]
[1734988173551,0.07533742,3435.0,3434.2,2.91184]
[1734988173750,0.07533742,3435.0,3433.7,3.04801474]
[1734988173983,0.07533742,3435.0,3433.8,0.30480147]
[1734988174491,0.07533742,3435.0,3434.3,2.91172]
[1734988174686,0.07533742,3435.0,3434.6,2.9115]
[1734988175095,0.07533742,3435.0,3433.8,0.30480147]
[1734988175303,0.07533742,3435.0,3434.5,2.91161]
[1734988175586,0.07533742,3435.0,3434.0,2.91197]
[1734988175883,0.07533742,3435.0,3434.6,2.91146]
[1734988176084,0.07533742,3435.0,3434.1,0.32167715]
[1734988176085,0.07533742,3435.0,3434.9,2.91129]
[1734988177604,0.005,3435.5,3435.4,2.91086]
[1734988178378,0.005,3435.5,3434.8,3.04801474]
[1734988178569,0.005,3435.5,3435.3,2.91092]
[1734988179447,0.005,3435.5,3435.4,2.91086]
[1734988179846,0.005,3435.5,3435.0,2.91119]
[1734988180512,0.005,3435.5,3435.1,2.91109]
[1734988181008,0.005,3435.5,3435.3,2.91087]
[1734988181206,0.005,3435.5,3435.4,2.91086]
[1734988181800,1e-05,3435.5,3435.4,6.53797714]
[1734988181983,1e-05,3435.5,3435.4,6.50887474]
[1734988182190,1e-05,3435.5,3435.4,3.46086]
[1734988182371,1e-05,3435.5,3435.4,3.91105969]
[1734988182703,1e-05,3435.5,3435.4,3.88196337]
[1734988183050,1e-05,3435.5,3435.4,3.91106331]
[1734988183244,1e-05,3435.5,3435.4,3.88196337]
[1734988183449,1e-05,3435.5,3435.4,4.4610633]
[1734988184106,0.1706,3436.2,3435.4,4.4610633]
[1734988184264,0.1706,3436.2,3435.8,2.91045]
[1734988184467,0.1706,3436.2,3436.0,2.91032]
[1734988184680,0.1706,3436.2,3435.8,2.91052]
[1734988184901,0.1706,3436.2,3435.5,2.9107]
[1734988185051,0.1706,3436.2,3434.6,4.06476365]
[1734988185052,0.1706,3436.2,3435.2,2.91096]
[1734988185457,0.1706,3436.2,3435.0,2.91119]
[1734988185703,0.1706,3436.1,3434.5,1.15325365]
[1734988185909,0.1706,3436.1,3434.9,2.91129]
[1734988186063,0.1706,3436.1,3435.7,2.91053]
[1734988186568,0.1706,3436.1,3435.8,2.91047]
[1734988187358,0.1706,3436.1,3436.0,2.91036]
[1734988187898,0.1706,3436.1,3435.9,2.91038]
[1734988188357,0.1706,3436.1,3435.7,2.91061]
[1734988188788,0.1706,3436.1,3435.4,2.91079]
[1734988189208,0.1706,3436.1,3436.0,2.91036]
[1734988189401,0.1706,3436.1,3435.3,2.91089]
[1734988189714,0.1706,3436.1,3435.9,2.91044]
[1734988189926,0.1706,3436.1,3436.0,2.91036]
[1734988190056,0.1706,3436.4,3436.0,3.49245]
[1734988190255,0.1706,3436.4,3436.2,2.91019]
[1734988192255,0.1706,3436.4,3435.6,3.04801474]
[1734988192457,0.1706,3436.4,3436.0,2.91027]
[1734988192704,0.1706,3436.4,3435.4,2.9108]
[1734988192907,0.1706,3436.2,3436.0,1.165408]
[1734988193060,0.1706,3436.2,3436.0,4.075708]
[1734988193618,0.1706,3436.2,3436.0,1.165408]
[1734988193908,0.1706,3436.2,3435.3,2.91091]
[1734988194325,0.1706,3436.2,3435.3,1.165652]
[1734988194613,0.1706,3435.4,3434.4,2.91171]
[1734988194775,0.1706,3435.4,3434.0,2.22074676]
[1734988194776,0.1706,3435.3,3434.6,1.165894]
[1734988195115,0.1706,3435.6,3434.6,3.04801474]
[1734988195315,0.1706,3435.6,3435.5,2.91078]
[1734988195551,0.1706,3436.2,3435.4,3.04801474]
[1734988195701,0.1706,3436.2,3435.9,2.91042]
[1734988195905,0.1706,3436.2,3436.0,2.91034]
[1734988196347,0.1706,3436.2,3435.6,2.91069]
[1734988196553,9.5e-06,3436.3,3436.2,2.91019]
[1734988196901,9.5e-06,3436.3,3436.2,2.93928439]
[1734988197252,1.21814799,3437.4,3437.3,2.90926]
[1734988197457,1.21814799,3437.4,3436.6,3.04801474]
[1734988197604,0.1706,3437.3,3436.7,2.90971]
[1734988197952,0.1706,3437.3,3437.2,2.90934]
[1734988198253,0.1706,3437.6,3437.5,2.90909]
[1734988198765,0.1706,3437.6,3437.3,2.90924]
[1734988199108,0.1706,3437.6,3436.6,2.90985]
[1734988199334,0.1706,3437.6,3437.5,2.90909]
[1734988201818,1.99827854,3437.7,3437.6,2.909]
[1734988204526,1.99827854,3437.7,3437.3,2.90917]
[1734988204728,0.1706,3437.6,3437.3,2.90917]
[1734988205025,0.1706,3437.6,3437.4,2.90915]
[1734988205221,0.1706,3437.6,3437.5,2.90909]
[1734988206415,0.1706,3437.6,3437.1,2.90935]
[1734988206858,0.1706,3437.6,3436.4,2.91002]
[1734988207059,0.1706,3437.6,3437.5,2.90909]
[1734988207418,0.1706,3437.6,3437.1,2.90935]
[1734988207864,0.1706,3437.6,3436.8,2.90963]
[1734988208046,6.20727474,3437.3,3434.8,1.97315365]
[1734988208228,2.91038,3436.0,3434.8,1.15325365]
[1734988208429,0.1706,3435.4,3434.8,1.15325365]
[1734988208632,0.1706,3435.4,3435.0,2.9112]
[1734988208862,0.1706,3435.4,3434.7,1.15325365]
[1734988209172,0.1706,3435.4,3435.3,2.91095]
[1734988209468,0.1706,3436.0,3435.9,2.91044]
[1734988209814,0.1706,3436.9,3435.8,0.818]
[1734988210173,1.99827854,3437.7,3437.5,2.90909]
[1734988210174,0.1706,3437.6,3437.5,2.90909]
[1734988210317,0.1706,3437.6,3437.1,2.90935]
[1734988210523,0.1706,3437.6,3436.3,2.91003]
[1734988210524,3.07961,3437.6,3436.3,2.91003]
[1734988210727,0.1706,3437.5,3435.7,3.04801474]
[1734988210975,0.1706,3437.5,3435.8,5.82106]
[1734988211281,0.1706,3437.5,3435.7,3.04801474]
[1734988211282,0.1706,3437.5,3436.1,2.91027]
[1734988211429,0.1706,3437.5,3437.4,2.90917]
[1734988211630,0.1706,3437.5,3436.5,3.04801474]
[1734988211955,0.1706,3437.5,3437.4,2.90917]
[1734988212158,0.1706,3437.5,3437.1,2.9094]
[1734988212457,0.1706,3437.5,3436.7,2.90971]
[1734988212660,0.1706,3437.5,3436.0,2.9103]
[1734988212861,0.1706,3437.5,3436.2,2.91019]
[1734988213061,0.1706,3437.5,3437.4,2.90917]
[1734988213231,1.99827854,3437.7,3437.6,2.909]
[1734988214308,0.54381854,3437.7,3437.6,2.909]
[1734988214580,8.54e-06,3437.7,3437.6,2.909]
[1734988214763,8.54e-06,3437.7,3437.6,3.571047]
[1734988215282,8.54e-06,3437.7,3437.6,2.909]
[1734988215695,0.1706,3437.6,3437.3,2.90918]
[1734988215907,0.1706,3437.6,3437.0,2.90949]
[1734988216044,0.1706,3437.6,3436.3,0.7783]
[1734988216389,0.1706,3437.6,3436.1,3.70619615]
[1734988216579,0.1706,3437.6,3436.0,1.15325365]
[1734988216747,2.91024,3436.2,3436.0,1.15325365]
[1734988216948,2.91025,3436.2,3436.0,1.15325365]
[1734988217174,2.90961,3436.9,3436.0,1.15325365]
[1734988217384,2.90968,3436.8,3436.0,1.15325365]
[1734988217549,0.25,3437.6,3434.6,1.165835]
[1734988217750,2.90926,3437.3,3435.3,2.91091]
[1734988218002,0.25,3437.1,3434.7,0.53070791]
[1734988218217,2.90959,3436.9,3434.6,4.077375]
[1734988218418,0.25,3436.5,3434.3,2.91178]
[1734988218564,2.90976,3436.7,3434.0,1.06749311]
[1734988218761,2.90959,3437.0,3434.5,0.8003]
[1734988219016,2.90959,3437.0,3435.3,2.9109]
[1734988219219,2.91041,3436.0,3434.5,0.8003]
[1734988219506,2.9105,3435.9,3434.5,2.91161]
[1734988219707,2.9105,3435.9,3434.6,2.91153]
[1734988220013,3.15978,3436.7,3434.7,0.291153]
[1734988220014,0.1698,3435.8,3434.7,0.291153]
[1734988220317,3.08039,3435.8,3434.4,2.91163]
[1734988220457,0.1698,3435.5,3434.2,1.165968]
[1734988220667,0.1698,3435.5,3434.1,0.55616908]
[1734988220867,0.1698,3435.5,3434.3,2.91177]
[1734988221088,3.08061,3435.5,3434.3,2.91177]
[1734988221316,0.1698,3435.5,3434.3,0.57014002]
[1734988221523,0.1698,3435.5,3434.5,2.91162]
[1734988221723,0.1698,3435.5,3434.1,0.55616908]
[1734988222029,0.1698,3436.6,3435.8,2.9105]
[1734988222727,0.1698,3436.9,3434.6,0.7851]
[1734988223025,0.1698,3436.9,3434.2,2.91183]
[1734988223026,3.08027,3435.9,3434.2,2.91188]
[1734988223209,0.1698,3435.9,3434.7,2.91142]
[1734988223773,2.91053,3435.8,3434.3,0.64866102]
[1734988224028,0.1698,3435.5,3434.3,0.64866102]
[1734988224172,3.0806,3435.5,3434.3,3.56044102]
[1734988225278,0.1698,3435.5,3434.3,0.64866102]
[1734988225628,0.1698,3435.5,3434.1,0.55616908]
[1734988225830,0.1698,3435.5,3434.0,2.23346111]
[1734988226457,0.1698,3435.5,3434.1,2.91193]
[1734988226969,0.1698,3435.5,3434.0,2.23346111]
[1734988227107,2.91097,3435.3,3434.0,2.23346111]
[1734988227313,0.1698,3435.2,3434.0,2.23346111]
[1734988227507,0.1698,3435.2,3434.0,2.53331722]
[1734988227707,3.34094406,3435.9,3434.0,2.23346111]
[1734988227960,2.9119,3434.2,3434.0,1.06749311]
[1734988228164,0.1698,3434.3,3434.0,1.06749311]
[1734988228472,2.91192,3434.2,3434.0,1.06749311]
[1734988228648,0.1698,3434.3,3434.0,1.06749311]
[1734988229019,0.1698,3435.1,3434.0,1.06749311]
[1734988229215,2.9112,3435.0,3434.0,1.06749311]
[1734988229417,0.1698,3435.3,3434.0,1.06749311]
[1734988229770,0.1698,3435.2,3434.2,2.91188]
[1734988230067,0.1698,3435.2,3434.0,1.06749311]
[1734988230268,0.1698,3435.2,3434.0,3.97954311]
[1734988230451,0.1698,3435.2,3434.0,1.06749311]
[1734988230670,0.1698,3435.2,3434.1,2.91189]
[1734988230963,0.1698,3435.2,3434.0,1.06749311]
[1734988231267,0.1698,3435.2,3434.1,0.39796531]
[1734988231432,2.91114,3435.1,3434.0,1.06749311]
[1734988231770,0.1698,3435.0,3434.0,1.06749311]
[1734988231980,0.1698,3435.0,3434.3,2.91176]
[1734988232484,0.1698,3436.0,3434.6,2.91148]
[1734988233151,2.91058,3435.8,3434.6,2.91148]
[1734988233348,0.1698,3436.0,3434.6,0.291148]
[1734988233546,0.1698,3436.0,3434.6,3.33382885]
[1734988233746,0.1698,3436.6,3435.1,2.91112]
[1734988233949,0.1698,3436.6,3435.0,3.04268085]
[1734988234164,0.1698,3436.6,3435.1,2.91112]
[1734988234369,3.07965,3436.6,3435.4,2.91078]
[1734988234568,2.91002,3436.4,3435.2,2.91095]
[1734988234891,1.21814799,3436.9,3434.4,0.7748]
[1734988235064,0.1698,3436.4,3435.0,3.04268085]
[1734988235278,0.1698,3436.4,3435.5,2.91078]
[1734988235451,2.9092,3437.4,3436.1,2.91025]
[1734988235636,3.07908,3437.3,3436.1,2.91025]
[1734988236185,0.1698,3437.3,3436.0,2.91028]
[1734988236396,2.90934,3437.2,3435.7,2.91061]
[1734988236599,2.90934,3437.2,3436.1,2.91025]
[1734988236732,0.1698,3437.3,3435.6,0.88642609]
[1734988236933,0.1698,3437.3,3436.6,2.90984]
[1734988237177,0.172912,3438.3,3436.1,0.7748]
[1734988237367,2.90876,3437.9,3436.7,2.90976]
[1734988237852,0.172912,3438.3,3436.5,2.90993]
[1734988238053,3.081332,3438.3,3437.1,2.90942]
[1734988238284,0.172912,3438.3,3437.3,2.90926]
[1734988238590,0.172912,3438.3,3437.4,2.9091]
[1734988238793,0.172912,3438.3,3437.1,0.290942]
[1734988238952,0.172912,3438.3,3437.5,2.90908]
[1734988239338,0.172912,3438.3,3437.1,0.290942]
[1734988239548,0.172912,3438.3,3437.0,3.68424]
[1734988239901,0.172912,3438.3,3437.0,0.7748]
[1734988240105,0.172912,3438.3,3437.7,2.90887]
[1734988240269,0.172912,3438.3,3437.3,2.93827807]
[1734988240597,0.172912,3438.3,3437.3,0.02908807]
[1734988240760,0.172912,3438.3,3437.7,2.9089]
[1734988240943,0.172912,3438.3,3438.0,2.90863]
[1734988241597,0.172912,3438.3,3437.4,0.30717689]
[1734988241797,0.172912,3438.3,3437.0,0.7748]
[1734988242004,0.172912,3438.3,3437.3,2.90923]
[1734988242188,0.172912,3438.3,3437.0,0.7748]
[1734988242390,0.172912,3438.3,3437.4,2.90909]
[1734988242713,0.172912,3438.3,3437.4,4.365044]
[1734988243007,0.172912,3438.3,3437.7,2.90888]
[1734988243185,0.172912,3438.3,3437.4,1.165035]
[1734988243349,2.90863,3438.1,3436.9,2.90956]
[1734988243546,0.172912,3438.3,3436.0,0.02909194]
[1734988243801,0.172912,3438.3,3437.1,1.165141]
[1734988243979,0.172912,3438.3,3437.0,2.90949]
[1734988244184,0.172912,3438.3,3437.1,0.290949]
[1734988244385,0.172912,3438.3,3437.6,2.90895]
[1734988244918,0.172912,3438.3,3437.2,0.02909019]
[1734988245070,0.172912,3438.3,3437.0,0.7625]
[1734988245265,0.172912,3438.3,3437.2,2.90934]
[1734988245488,0.172912,3438.3,3437.4,2.9091]
[1734988245733,0.172912,3438.3,3437.2,2.90933]
[1734988246217,0.172912,3438.3,3437.0,0.7625]
[1734988246394,0.172912,3438.3,3436.2,3.74205]
[1734988246594,2.90849,3438.2,3436.5,2.90993]
[1734988246784,0.172912,3438.3,3436.3,0.4907247]
[1734988246991,2.90885,3437.8,3436.5,2.90985]
[1734988247195,0.172912,3438.3,3436.5,2.90985]
[1734988247495,2.90866,3438.0,3436.3,2.9101]
[1734988247708,2.90908,3437.6,3436.3,2.9101]
[1734988247889,2.9091,3437.5,3436.3,2.9101]
[1734988248093,3.081382,3438.3,3436.3,0.4075297]
[1734988248292,2.90874,3438.0,3436.6,2.90977]
[1734988248509,0.172912,3438.3,3437.3,2.90923]
[1734988248676,0.172912,3438.3,3436.3,2.9101]
[1734988248677,0.172912,3438.3,3437.5,0.8319]
[1734988248874,0.172912,3438.3,3437.6,2.90899]
[1734988249121,0.172912,3438.3,3437.1,0.8319]
[1734988249624,0.172912,3438.3,3437.1,0.86098618]
[1734988250213,0.172912,3438.3,3438.2,3.74039]
[1734988252325,0.172912,3438.3,3438.2,2.90849]
[1734988252852,0.172912,3438.3,3438.1,2.90857]
[1734988253163,0.172912,3438.3,3438.1,2.90856]
[1734988253929,0.172912,3438.3,3438.2,2.90849]
[1734988254267,0.172912,3438.3,3437.6,0.7524]
[1734988254614,0.172912,3438.3,3437.9,2.90874]
[1734988254964,0.172912,3438.3,3438.0,2.90865]
[1734988255133,0.172912,3438.3,3437.7,2.90892]
[1734988255462,0.172912,3438.3,3438.2,3.70419]
[1734988256451,0.172912,3438.3,3438.1,2.90857]
[1734988256767,0.172912,3438.3,3437.9,2.90873]
[1734988256917,0.172912,3438.3,3437.6,2.90892]
[1734988257365,0.172912,3438.3,3437.7,2.9089]
[1734988257662,0.172912,3438.3,3437.4,0.7957]
[1734988257845,0.172912,3438.3,3437.6,2.90892]
[1734988258214,0.172912,3438.3,3438.0,2.90862]
[1734988258415,0.172912,3438.3,3438.2,2.90849]
[1734988258832,2e-06,3438.3,3438.2,2.90849]
[1734988259166,2e-06,3438.7,3438.6,0.7656]
[1734988259384,2e-06,3438.7,3438.6,3.67376]
[1734988259515,2e-06,3438.7,3438.4,2.90825]
[1734988259717,2e-06,3438.7,3438.3,0.7688]
[1734988260035,2e-06,3438.7,3438.6,2.90816]
[1734988261220,2e-06,3438.7,3438.6,3.66986]
[1734988262717,0.092547,3440.0,3438.4,3.03460774]
[1734988262961,0.092547,3440.0,3439.6,2.9073]
[1734988263363,0.092547,3440.0,3439.4,0.8279]
[1734988263526,0.092547,3440.0,3439.3,2.90756]
[1734988263869,0.092547,3440.0,3438.7,0.7761]
[1734988264279,2.90709,3439.9,3438.8,2.90797]
[1734988264422,0.092547,3440.0,3438.6,2.90811]
[1734988264776,2.90708,3439.9,3438.7,2.90806]
[1734988265067,0.092547,3440.0,3438.6,0.35024068]
[1734988265218,0.092547,3440.0,3438.4,0.7761]
[1734988265219,0.092547,3440.0,3438.5,3.03460774]
[1734988265422,0.092547,3440.0,3439.5,2.90732]
[1734988265638,0.092547,3440.0,3439.2,2.9076]
[1734988266128,0.092547,3440.0,3439.1,0.7761]
[1734988266549,0.092547,3440.0,3439.2,2.90762]
[1734988267173,2.999597,3440.0,3438.9,2.90782]
[1734988267343,0.092547,3440.0,3438.8,0.7775]
[1734988267671,0.092547,3440.0,3438.3,2.9084]
[1734988267896,2.90719,3439.8,3438.3,2.9084]
[1734988268175,2.90723,3439.7,3438.3,2.9084]
[1734988268378,2.90737,3439.6,3438.1,3.03460774]
[1734988268525,2.90737,3439.6,3438.4,2.90825]
[1734988268726,2.90749,3439.4,3438.1,3.41581851]
[1734988268937,2.90706,3439.9,3438.0,0.7775]
[1734988269159,2.90778,3439.1,3437.9,2.90867]
[1734988269361,2.90756,3439.3,3437.7,6.72096774]
[1734988269523,2.90767,3439.2,3437.7,6.72096774]
[1734988269722,2.90767,3439.2,3438.1,2.90858]
[1734988269974,2.90738,3439.6,3437.7,3.81210774]
[1734988270133,0.092547,3440.0,3438.4,0.7775]
[1734988270339,2.90725,3439.7,3438.5,2.90822]
[1734988270559,3.092547,3440.0,3438.1,2.90857]
[1734988270799,2.90793,3438.9,3437.7,3.03460774]
[1734988270960,3.03460774,3439.3,3436.9,0.7775]
[1734988271159,2.90739,3439.5,3436.9,0.7775]
[1734988271326,2.90766,3439.2,3437.7,0.7775]
[1734988271536,2.0,3439.9,3437.7,3.6864]
[1734988271768,2.90789,3439.0,3437.7,3.6864]
[1734988271969,2.90789,3439.0,3437.9,2.90874]
[1734988272277,2.90762,3439.3,3438.1,2.90853]
[1734988272459,2.90762,3439.3,3438.2,2.90848]
[1734988272656,2.90773,3439.1,3437.9,2.90867]
[1734988272831,2.90739,3439.5,3437.9,0.67207777]
[1734988273173,2.90706,3439.9,3438.1,2.90853]
[1734988273375,2.90769,3439.2,3438.1,2.90853]
[1734988273679,2.90714,3439.8,3437.9,2.90867]
[1734988273872,2.90772,3439.2,3438.0,2.90864]
[1734988274084,2.90772,3439.2,3438.1,3.199364]
[1734988274540,2.90772,3439.2,3438.1,2.9085]
[1734988274750,2.90743,3439.5,3437.8,2.90883]
[1734988274922,2.90743,3439.5,3438.2,2.90842]
[1734988275123,0.092547,3440.0,3439.0,2.90778]
[1734988275383,0.092547,3440.0,3439.0,3.198558]
[1734988275686,0.092547,3440.0,3438.8,0.8088]
[1734988276046,0.092547,3440.0,3439.4,2.90748]
[1734988276760,0.092547,3440.0,3439.4,2.90742]
[1734988277348,0.092547,3440.0,3439.5,2.90738]
[1734988277553,0.092547,3440.0,3439.7,2.90722]
[1734988277887,0.092547,3440.0,3439.7,0.290722]
[1734988278093,0.092547,3440.0,3439.8,2.90711]
[1734988278391,0.092547,3440.0,3439.7,2.90718]
[1734988278977,0.092547,3440.0,3439.6,0.7913]
[1734988279173,0.092547,3440.0,3439.1,0.8117]
[1734988279396,0.092547,3440.0,3439.3,2.90461176]
[1734988279592,0.092547,3440.0,3439.1,0.8117]
[1734988279593,0.092547,3440.0,3439.1,3.71943]
[1734988279758,0.092547,3440.0,3438.8,2.90794]
[1734988279943,2.90734,3439.6,3438.5,2.90816]
[1734988280137,0.092547,3440.0,3438.2,0.8117]
[1734988280343,0.092547,3440.0,3438.4,2.90825]
[1734988280582,0.092547,3440.0,3438.7,2.90805]
[1734988281085,0.092547,3440.0,3439.2,2.90757]
[1734988281254,0.092547,3440.0,3439.3,2.90752]
[1734988281866,0.092547,3440.0,3439.5,2.90735]
[1734988282081,0.092547,3440.0,3439.5,0.290735]
[1734988282284,0.092547,3440.0,3439.4,2.90746]
[1734988282500,0.092547,3440.0,3438.9,0.8097]
[1734988282661,0.092547,3440.0,3439.6,0.8097]
[1734988283062,0.092547,3440.0,3439.5,2.90736]
[1734988283764,0.092547,3440.0,3439.3,2.90755]
[1734988283963,0.092547,3440.0,3439.3,0.371725]
[1734988284915,0.092547,3440.0,3439.6,2.9073]
[1734988285607,0.092547,3440.0,3439.6,2.90724]
[1734988285840,0.092547,3440.0,3439.9,3.03460774]
[1734988285990,0.092547,3440.0,3439.9,6.71646774]
[1734988286173,0.092547,3440.0,3439.9,7.67883851]
[1734988286376,7e-06,3440.0,3439.9,7.67883851]
[1734988287808,7e-06,3440.0,3439.1,2.90773]
[1734988288105,7e-06,3440.0,3439.0,1.9571264]
[1734988288307,2.91332,3441.1,3439.7,2.90715]
[1734988288489,2.91332,3441.1,3439.4,0.02906792]
[1734988288490,0.00726,3441.1,3439.4,0.02906792]
[1734988288687,0.00726,3441.1,3439.5,0.7748]
[1734988288895,0.00726,3441.1,3440.3,2.90671]
[1734988289063,0.00726,3441.1,3440.1,2.9068]
[1734988289263,0.00726,3441.1,3439.8,2.9071]
[1734988289507,0.00726,3441.1,3439.6,0.38384757]
[1734988289805,0.00726,3441.1,3439.6,0.41291345]
[1734988290010,0.00726,3441.1,3439.7,1.38779812]
[1734988290211,0.00726,3441.1,3440.4,2.90659]
[1734988290414,0.00726,3441.1,3439.7,1.38779812]
[1734988290563,0.00726,3441.1,3440.3,2.90671]
[1734988290971,0.00726,3441.1,3439.9,2.90698]
[1734988291317,0.00726,3441.1,3441.0,2.90613]
[1734988292000,2.90488,3442.5,3441.4,2.90575]
[1734988292184,1.18831999,3442.6,3441.1,2.90598]
[1734988292392,2.90532,3442.0,3440.9,0.7541]
[1734988292600,1.18831999,3442.6,3440.9,0.7541]
[1734988292793,2.90562,3441.7,3440.4,3.7254]
[1734988293020,2.90486,3442.5,3440.5,0.37254]
[1734988293021,2.9055,3441.8,3440.5,0.37254]
[1734988293186,5.90472,3442.7,3440.4,0.8188]
[1734988293393,5.90472,3442.7,3441.1,2.90604]
[1734988293600,2.90552,3441.8,3440.6,2.90638]
[1734988293781,2.90553,3441.8,3440.6,2.90638]
[1734988293983,0.75803387,3442.6,3440.4,0.8188]
[1734988294181,2.90555,3441.7,3440.5,2.90655]
[1734988294376,2.90563,3441.6,3440.5,3.279085]
[1734988294677,3.03460774,3441.1,3439.3,0.7656]
[1734988295011,3.03460774,3441.1,3438.9,1.91885365]
[1734988295012,2.90716,3439.8,3438.9,1.91885365]
[1734988295178,0.3830391,3441.0,3438.9,1.91885365]
[1734988295179,2.90621,3440.9,3438.9,1.91885365]
[1734988295378,2.90698,3440.0,3438.9,1.91885365]
[1734988295607,2.90661,3440.5,3438.9,1.91885365]
[1734988295608,3.03460774,3440.5,3438.9,1.91885365]
[1734988295959,2.90782,3439.0,3438.9,1.15325365]
[1734988296240,2.90782,3439.0,3437.9,0.7656]
[1734988296375,2.90791,3438.9,3437.9,0.7656]
[1734988296585,2.90819,3438.6,3437.9,0.19188537]
[1734988296931,3.03460774,3438.9,3437.6,1.15325365]
[1734988297313,2.90756,3439.3,3437.6,1.15325365]
[1734988297314,2.90892,3437.7,3437.6,1.15325365]
[1734988297482,2.90892,3437.7,3436.2,1.15325365]
[1734988297681,2.90951,3437.1,3436.2,1.15325365]